lending/lending_fUSD_20250920
["ID","MTS","AMOUNT","RATE_DAILY","PERIOD"]
[386573422,1758405044348,-5456.09889691,0.00023812,2]
[386573423,1758405044358,-151.0,0.00023812,7]
[386573424,1758405044367,-233.586048,0.00023812,7]
[386573425,1758405044376,-151.0,0.00023812,7]
[386573426,1758405044386,-295.462983,0.00023812,7]
[386573427,1758405044396,-163.73531,0.00023812,7]
[386573428,1758405044406,-163.73531,0.00023812,7]
[386573429,1758405044415,-163.73531,0.00023812,7]
[386573430,1758405044425,-163.73531,0.00023812,7]
[386573431,1758405044435,-151.0,0.00023812,7]
[386573432,1758405044444,-1816.652634,0.00023812,7]
[386573433,1758405044454,-151.0,0.00023812,7]
[386573434,1758405044464,-1816.652634,0.00023812,7]
[386573435,1758405044474,-1816.652634,0.00023812,7]
[386573436,1758405044485,-1816.652634,0.00023812,7]
[386573437,1758405044495,-924.364775,0.00023812,7]
[386573438,1758405044505,-168.509792,0.00023812,7]
[386573439,1758405044516,-924.364775,0.00023812,7]
[386573440,1758405044525,-168.509792,0.00023812,7]
[386573441,1758405044535,-924.364775,0.00023812,7]
[386573442,1758405044545,-168.509792,0.00023812,7]
[386573443,1758405044555,-924.364775,0.00023812,7]
[386573444,1758405044565,-168.509792,0.00023812,7]
[386573445,1758405044575,-284.520024,0.00023812,7]
[386573446,1758405044584,-328.279368,0.00023812,7]
[386573447,1758405044594,-328.279368,0.00023812,7]
[386573448,1758405044603,-328.279368,0.00023812,7]
[386573449,1758405044613,-328.279368,0.00023812,7]
[386573450,1758405044622,-151.0,0.00023812,7]
[386573451,1758405044632,-444.0,0.00023836,2]
[386573452,1758405044642,-150.0,0.00023836,2]
[386573453,1758405044651,-637.0,0.00023836,2]
[386573454,1758405044660,-500.0,0.00023836,2]
[386573455,1758405044669,-474.0,0.00023836,2]
[386573456,1758405044679,-1626.0,0.00023836,2]
[386573457,1758405044688,-500.0,0.00023836,2]
[386573458,1758405044697,-200.0,0.00023836,2]
[386573459,1758405044707,-151.0,0.00023836,7]
[386573460,1758405044716,-151.0,0.00023836,7]
[386573461,1758405044725,-151.0,0.00023836,7]
[386573462,1758405044734,-151.0,0.00023836,7]
[386573463,1758405044745,-151.0,0.00023836,7]
[386573464,1758405044755,-183.133856,0.00023836,7]
[386573465,1758405044764,-151.0,0.00023836,7]
[386573466,1758405044774,-151.0,0.00023836,7]
[386573467,1758405044783,-151.0,0.00023836,7]
[386573468,1758405044792,-241.177896,0.00023836,7]
[386573469,1758405044802,-11495.64908059,0.00023856,2]
[386573470,1758405044811,-500.0,0.00023896,5]
[386573471,1758405044821,-1000.0,0.000239,30]
[386573472,1758405044830,-2500.0,0.000239,8]
[386573473,1758405044840,-200.0,0.0002391,7]
[386573474,1758405044850,-1586.0,0.00023941,2]
[386573475,1758405044860,-150.0,0.00023976,2]
[386573476,1758405044869,-257.66868008,0.00023978,2]
[386573477,1758405044879,-328.40125892,0.00023979,2]
[386573478,1758405044888,-399.13383776,0.00023981,2]
[386573479,1758405044898,-469.86641661,0.00023982,2]
[386573480,1758405044908,-540.59899545,0.00023984,2]
[386573481,1758405044917,-611.3315743,0.00023985,2]
[386573482,1758405044927,-682.06415314,0.00023987,2]
[386573483,1758405044936,-752.79673199,0.00023988,2]
[386573484,1758405044946,-823.52931083,0.0002399,2]
[386573485,1758405044955,-189.346406,0.0002399,7]
[386573486,1758405044964,-181.252178,0.0002399,7]
[386573487,1758405044974,-181.252178,0.0002399,7]
[386573488,1758405044984,-181.252178,0.0002399,7]
[386573489,1758405044993,-181.252178,0.0002399,7]
[386573490,1758405045002,-151.0,0.0002399,7]
[386573491,1758405045012,-177.916575,0.0002399,7]
[386573492,1758405045022,-151.0,0.0002399,7]
[386573493,1758405045032,-151.0,0.0002399,7]
[386573494,1758405045041,-151.0,0.0002399,7]
[386573495,1758405045052,-151.0,0.0002399,7]
[386573496,1758405045061,-151.0,0.0002399,7]
[386573497,1758405045071,-789.0,0.00024,2]
[386573498,1758405045080,-1003.31172227,0.00024,2]
[386573499,1758405045090,-335.79958969,0.00024,2]
[386573500,1758405045100,-4000.0,0.00024,3]
[386573501,1758405045109,-59998.01437646,0.00024,2]
[386573502,1758405045118,-4656.94959727,0.00024,4]
[386573503,1758405045127,-160.0,0.00024,7]
[386573504,1758405045136,-11491.6672937,0.00024,2]
[386573505,1758405045146,-10000.0,0.00024,2]
[386573506,1758405045157,-4027.0,0.00024,2]
[386573507,1758405045169,-3019.62027748,0.00024,7]
[386573508,1758405045178,-149417.83559026,0.00024,2]
[386573509,1758405045188,-3160.98744951,0.00024,2]
[386573510,1758405045198,-151.0,0.00024,7]
[386573511,1758405045208,-151.0,0.00024,7]
[386573512,1758405045217,-151.0,0.00024,7]
[386573513,1758405045226,-151.0,0.00024,7]
[386573514,1758405045236,-224.584867,0.00024,7]
[386573515,1758405045245,-151.0,0.00024,7]
[386573516,1758405045254,-151.0,0.00024,7]
[386573517,1758405045263,-151.0,0.00024,7]
[386573518,1758405045274,-151.0,0.00024,7]
[386573519,1758405045283,-157.625611,0.00024,7]
[386573520,1758405045293,-151.0,0.00024,7]
[386573521,1758405045302,-151.0,0.00024,7]
[386573523,1758405045312,-151.0,0.00024,7]
[386573524,1758405045322,-151.0,0.00024,7]
[386573525,1758405045331,-151.0,0.00024,7]
[386573526,1758405045341,-151.402961,0.00024,7]
[386573527,1758405045350,-151.0,0.00024,7]
[386573528,1758405045360,-151.0,0.00024,7]
[386573529,1758405045369,-151.0,0.00024,7]
[386573530,1758405045378,-263.260771,0.00024,7]
[386573531,1758405045388,-151.0,0.00024,7]
[386573532,1758405045397,-237.616497,0.00024,7]
[386573534,1758405045407,-163.760256,0.00024,7]
[386573537,1758405045653,-151.0,0.00024,7]
[386573538,1758405045680,-151.0,0.00024,7]
[386573539,1758405045691,-151.0,0.00024,7]
[386573540,1758405045700,-151.0,0.00024,7]
[386573541,1758405045711,-151.0,0.00024,7]
[386573542,1758405045720,-151.0,0.00024,7]
[386573543,1758405045729,-160.0,0.00024,7]
[386573544,1758405045739,-151.0,0.00024,7]
[386573545,1758405045748,-151.0,0.00024,7]
[386573546,1758405045757,-151.0,0.00024,7]
[386573547,1758405045767,-151.0,0.00024,7]
[386573548,1758405045776,-151.0,0.00024,7]
[386573549,1758405045786,-151.0,0.00024,7]
[386573550,1758405045796,-151.0,0.00024,7]
[386573551,1758405045806,-151.0,0.00024,7]
[386573552,1758405045815,-151.0,0.00024,7]
[386573553,1758405045826,-151.0,0.00024,7]
[386573554,1758405045835,-151.0,0.00024,7]
[386573555,1758405045844,-151.0,0.00024,7]
[386573556,1758405045854,-151.0,0.00024,7]
[386573557,1758405045863,-151.0,0.00024,7]
[386573558,1758405045873,-151.0,0.00024,7]
[386573559,1758405045883,-151.0,0.00024,7]
[386573560,1758405045893,-181.252178,0.00024,7]
[386573561,1758405045902,-181.252178,0.00024,7]
[386573562,1758405045911,-181.252178,0.00024,7]
[386573563,1758405045920,-181.252178,0.00024,7]
[386573564,1758405045930,-151.0,0.00024,7]
[386573565,1758405045939,-151.0,0.00024,7]
[386573566,1758405045950,-151.0,0.00024,7]
[386573567,1758405045959,-190.605782,0.00024,7]
[386573568,1758405045970,-151.0,0.00024,7]
[386573569,1758405045979,-151.0,0.00024,7]
[386573570,1758405045989,-151.0,0.00024,7]
[386573571,1758405045999,-259.218186,0.00024,7]
[386573572,1758405046008,-151.0,0.00024,7]
[386573573,1758405046017,-151.0,0.00024,7]
[386573574,1758405046026,-151.0,0.00024,7]
[386573575,1758405046036,-151.0,0.00024,7]
[386573576,1758405046046,-151.0,0.00024,7]
[386573577,1758405046056,-151.0,0.00024,7]
[386573578,1758405046065,-151.0,0.00024,7]
[386573579,1758405046074,-151.0,0.00024,7]
[386573580,1758405046084,-151.0,0.00024,7]
[386573581,1758405046094,-151.0,0.00024,7]
[386573582,1758405046104,-151.0,0.00024,7]
[386573583,1758405046114,-151.0,0.00024,7]
[386573584,1758405046123,-151.0,0.00024,7]
[386573585,1758405046133,-151.0,0.00024,7]
[386573586,1758405046142,-151.0,0.00024,7]
[386573587,1758405046151,-151.0,0.00024,7]
[386573588,1758405046161,-151.0,0.00024,7]
[386573589,1758405046171,-155.596521,0.00024,7]
[386573590,1758405046180,-155.596521,0.00024,7]
[386573591,1758405046189,-155.596521,0.00024,7]
[386573592,1758405046199,-155.596521,0.00024,7]
[386573593,1758405046208,-155.596521,0.00024,7]
[386573594,1758405046218,-151.0,0.00024,7]
[386573595,1758405046227,-151.0,0.00024,7]
[386573596,1758405046237,-155.596521,0.00024,7]
[386573597,1758405046246,-151.0,0.00024,7]
[386573598,1758405046256,-151.0,0.00024,7]
[386573599,1758405046265,-155.596521,0.00024,7]
[386573600,1758405046275,-151.0,0.00024,7]
[386573601,1758405046284,-155.596527,0.00024,7]
[386573602,1758405046294,-151.164004,0.00024,7]
[386573603,1758405046303,-151.0,0.00024,7]
[386573604,1758405046313,-151.0,0.00024,7]
[386573605,1758405046323,-151.0,0.00024,7]
[386573606,1758405046333,-151.0,0.00024,7]
[386573607,1758405046343,-151.0,0.00024,7]
[386573608,1758405046352,-252.705559,0.00024,7]
[386573609,1758405046362,-252.705559,0.00024,7]
[386573610,1758405046371,-252.705559,0.00024,7]
[386573611,1758405046381,-252.705559,0.00024,7]
[386573612,1758405046390,-151.0,0.00024,7]
[386573613,1758405046400,-252.705559,0.00024,7]
[386573614,1758405046409,-252.705559,0.00024,7]
[386573615,1758405046419,-252.705559,0.00024,7]
[386573616,1758405046428,-252.70555,0.00024,7]
[386573617,1758405046438,-163.73531,0.00024,7]
[386573618,1758405046447,-163.73531,0.00024,7]
[386573619,1758405046457,-163.73531,0.00024,7]
[386573620,1758405046466,-163.735312,0.00024,7]
[386573621,1758405046476,-151.0,0.00024,7]
[386573622,1758405046486,-1816.652634,0.00024,7]
[386573623,1758405046495,-1816.652634,0.00024,7]
[386573624,1758405046505,-1816.652634,0.00024,7]
[386573625,1758405046515,-1816.652641,0.00024,7]
[386573626,1758405046524,-924.364775,0.00024,7]
[386573627,1758405046534,-168.509792,0.00024,7]
[386573628,1758405046544,-924.364775,0.00024,7]
[386573629,1758405046554,-168.509792,0.00024,7]
[386573630,1758405046565,-924.364775,0.00024,7]
[386573631,1758405046575,-168.509792,0.00024,7]
[386573632,1758405046586,-924.364784,0.00024,7]
[386573633,1758405046596,-168.509789,0.00024,7]
[386573634,1758405046607,-328.279368,0.00024,7]
[386573635,1758405046617,-328.279368,0.00024,7]
[386573636,1758405046628,-328.279368,0.00024,7]
[386573637,1758405046637,-328.27936,0.00024,7]
[386573638,1758405046647,-151.0,0.00024,7]
[386573639,1758405046656,-1196.206096,0.00024,7]
[386573640,1758405046666,-151.0,0.00024,7]
[386573641,1758405046675,-1196.206096,0.00024,7]
[386573642,1758405046684,-204.157142,0.00024,7]
[386573643,1758405046694,-1196.206096,0.00024,7]
[386573644,1758405046703,-204.157142,0.00024,7]
[386573645,1758405046713,-1196.206086,0.00024,7]
[386573646,1758405046722,-204.157142,0.00024,7]
[386573647,1758405046731,-204.157142,0.00024,7]
[386573648,1758405046742,-671.48,0.00024001,2]
[386573649,1758405046752,-5000.0,0.0002401,2]
[386573650,1758405046762,-200.0,0.000241,7]
[386573651,1758405046771,-5296.78750951,0.000241,2]
[386573652,1758405046781,-274.31,0.000241,7]
[386573653,1758405046790,-3019.62027748,0.000241,3]
[386573654,1758405046800,-160.0,0.000241,3]
[386573655,1758405046809,-444.0,0.0002411,2]
[386573656,1758405046818,-297.7758324,0.0002411,2]
[386573657,1758405046828,-637.0,0.0002411,2]
[386573658,1758405046838,-500.0,0.0002411,2]
[386573659,1758405046847,-474.0,0.0002411,2]
[386573660,1758405046856,-1626.0,0.0002411,2]
[386573661,1758405046866,-500.0,0.0002411,2]
[386573662,1758405046875,-207.17941093,0.00024125,2]
[386573663,1758405046884,-1000.0,0.00024134,2]
[386573664,1758405046894,-168.0,0.00024152,2]
[386573665,1758405046904,-390.0,0.00024164,7]
[386573666,1758405046915,-388.0,0.00024164,7]
[386573667,1758405046927,-166.0,0.00024164,7]
[386573668,1758405046938,-500.0,0.0002417,5]
[386573669,1758405046949,-5456.09889691,0.00024185,2]
[386573670,1758405046960,-1586.0,0.00024188,2]
[386573671,1758405046971,-151.0,0.00024189,7]
[386573672,1758405046980,-151.0,0.00024189,7]
[386573673,1758405046990,-155.121098,0.00024189,7]
[386573674,1758405046999,-151.0,0.00024189,7]
[386573675,1758405047008,-280.348792,0.00024189,7]
[386573676,1758405047018,-151.0,0.00024189,7]
[386573677,1758405047027,-151.0,0.00024189,7]
[386573678,1758405047036,-151.0,0.00024189,7]
[386573679,1758405047046,-151.0,0.00024189,7]
[386573680,1758405047055,-151.0,0.00024189,7]
[386573681,1758405047064,-151.0,0.00024189,7]
[386573682,1758405047074,-151.0,0.00024189,7]
[386573683,1758405047085,-151.0,0.00024189,7]
[386573684,1758405047094,-151.0,0.00024189,7]
[386573685,1758405047104,-151.0,0.00024189,7]
[386573686,1758405047114,-151.0,0.00024189,7]
[386573687,1758405047123,-151.0,0.00024189,7]
[386573688,1758405047133,-151.0,0.00024189,7]
[386573689,1758405047142,-151.0,0.00024189,7]
[386573690,1758405047152,-151.0,0.00024189,7]
[386573691,1758405047165,-151.0,0.00024189,7]
[386573692,1758405047175,-151.0,0.00024189,7]
[386573693,1758405047185,-151.0,0.00024189,7]
[386573694,1758405047194,-151.0,0.00024189,7]
[386573695,1758405047206,-151.0,0.00024189,7]
[386573696,1758405047215,-151.0,0.00024189,7]
[386573697,1758405047225,-151.0,0.00024189,7]
[386573698,1758405047235,-151.0,0.00024189,7]
[386573699,1758405047244,-151.0,0.00024189,7]
[386573700,1758405047255,-181.252178,0.00024189,7]
[386573701,1758405047265,-181.252178,0.00024189,7]
[386573702,1758405047275,-181.252178,0.00024189,7]
[386573703,1758405047285,-181.252178,0.00024189,7]
[386573704,1758405047294,-151.0,0.00024189,7]
[386573705,1758405047304,-151.0,0.00024189,7]
[386573706,1758405047313,-151.0,0.00024189,7]
[386573707,1758405047323,-151.0,0.00024189,7]
[386573708,1758405047333,-3019.62027748,0.000242,7]
[386573709,1758405047343,-160.0,0.000242,7]
[386573710,1758405047353,-187.0,0.000242,2]
[386573711,1758405047363,-200.0,0.0002421,7]
[386573712,1758405047372,-414.77826632,0.0002421,2]
[386573713,1758405047382,-3633.33046467,0.0002421,2]
[386573714,1758405047392,-162.0,0.00024255,7]
[386573715,1758405047402,-671.48,0.00024275,2]
[386573716,1758405047412,-11495.64908059,0.00024283,2]
[386573717,1758405047422,-600.0,0.00024302,2]
[386573718,1758405047432,-200.0,0.0002431,7]
[386573719,1758405047441,-200.0,0.0002431,7]
[386573720,1758405047451,-284.00736572,0.0002434,2]
[386573721,1758405047461,-716.12302004,0.0002434,2]
[386573722,1758405047471,-410.53596696,0.0002434,2]
[386573723,1758405047480,-163.76306668,0.00024364,2]
[386573724,1758405047490,-444.0,0.00024384,2]
[386573725,1758405047499,-637.0,0.00024384,2]
[386573726,1758405047509,-500.0,0.00024384,2]
[386573727,1758405047519,-474.0,0.00024384,2]
[386573728,1758405047529,-1626.0,0.00024384,2]
[386573729,1758405047539,-500.0,0.00024384,2]
[386573730,1758405047548,-2571.35550309,0.000244,2]
[386573731,1758405047558,-200.0,0.0002441,7]
[386573732,1758405047568,-1586.0,0.00024434,2]
[386573733,1758405047578,-300.0,0.00024438,2]
[386573734,1758405047588,-300.0,0.00024439,2]
[386573735,1758405047597,-360543.70427481,0.00024439,2]
[386573736,1758405047627,-368571.52354697,0.00024439,2]
[386573737,1758405049935,-166.00701143,0.00019454,2]
[386573738,1758405049944,-500.0,0.00019454,2]
[386573739,1758405049954,-139.39382889,0.00019454,2]
[386573740,1758405049975,-436.28250311,0.00019454,2]
[386573741,1758405049984,-151.0,0.00022575,7]
[386573742,1758405049994,-151.0,0.00023343,7]
[386573743,1758405050008,-3558.17055689,0.00023343,7]
[386573744,1758405050022,-6038.91289905,0.00023343,7]
[386573745,1758405050050,-906.20987555,0.00023343,7]
[386573746,1758405050064,-1496.70666851,0.00023343,7]
[386573747,1758405050074,-151.0,0.00023395,7]
[386573748,1758405050084,-12000.0,0.00023395,7]
[386573749,1758405050094,-151.0,0.000237,7]
[386573750,1758405050104,-281.960797,0.00024,7]
[386573751,1758405050115,-822.25356333,0.0002434,2]
[386573752,1758405050125,-30355.47100415,0.00024439,2]
[386573753,1758405050135,-8916.67541098,0.00024439,2]
[386573754,1758405050146,-1426.21726449,0.0002444,2]
[386573755,1758405050156,-268228.0,0.0002444,2]
[386573756,1758405050167,-261430.29699132,0.0002444,2]
[386573757,1758405050177,-151.0,0.0002444,7]
[386573758,1758405050188,-151.0,0.0002444,7]
[386573759,1758405050197,-151.0,0.0002444,7]
[386573760,1758405050207,-151.0,0.0002444,7]
[386573761,1758405050217,-151.0,0.0002444,7]
[386573762,1758405050226,-151.0,0.0002444,7]
[386573763,1758405050236,-151.0,0.0002444,7]
[386573764,1758405050245,-151.0,0.0002444,7]
[386573765,1758405050255,-151.0,0.0002444,7]
[386573766,1758405050265,-151.0,0.0002444,7]
[386573767,1758405050274,-264.572191,0.0002444,7]
[386573768,1758405050283,-151.0,0.0002444,7]
[386573769,1758405050293,-151.0,0.0002444,7]
[386573770,1758405050303,-151.0,0.0002444,7]
[386573771,1758405050312,-151.0,0.0002444,7]
[386573772,1758405050322,-151.0,0.0002444,7]
[386573773,1758405050332,-151.0,0.0002444,7]
[386573774,1758405050342,-151.0,0.0002444,7]
[386573775,1758405050351,-151.0,0.0002444,7]
[386573776,1758405050361,-151.0,0.0002444,7]
[386573777,1758405050371,-151.0,0.0002444,7]
[386573778,1758405050380,-151.0,0.0002444,7]
[386573779,1758405050390,-151.0,0.0002444,7]
[386573780,1758405050400,-151.0,0.0002444,7]
[386573781,1758405050410,-269.840809,0.0002444,7]
[386573782,1758405050420,-151.0,0.0002444,7]
[386573783,1758405050431,-151.0,0.0002444,7]
[386573784,1758405050441,-151.0,0.0002444,7]
[386573785,1758405050451,-151.0,0.0002444,7]
[386573786,1758405050461,-151.0,0.0002444,7]
[386573787,1758405050472,-151.0,0.0002444,7]
[386573788,1758405050482,-151.0,0.0002444,7]
[386573789,1758405050493,-151.0,0.0002444,7]
[386573790,1758405050503,-151.0,0.0002444,7]
[386573791,1758405050513,-151.0,0.0002444,7]
[386573792,1758405050523,-205.171244,0.0002444,7]
[386573793,1758405050532,-151.0,0.0002444,7]
[386573794,1758405050542,-151.0,0.0002444,7]
[386573795,1758405050552,-151.0,0.0002444,7]
[386573796,1758405050561,-151.0,0.0002444,7]
[386573797,1758405050571,-151.0,0.0002444,7]
[386573798,1758405050581,-151.0,0.0002444,7]
[386573799,1758405050591,-151.0,0.0002444,7]
[386573800,1758405050601,-151.0,0.0002444,7]
[386573801,1758405050611,-151.0,0.0002444,7]
[386573802,1758405050621,-151.0,0.0002444,7]
[386573803,1758405050631,-151.0,0.0002444,7]
[386573804,1758405050641,-151.0,0.0002444,7]
[386573805,1758405050651,-151.0,0.0002444,7]
[386573806,1758405050661,-151.0,0.0002444,7]
[386573807,1758405050670,-151.0,0.0002444,7]
[386573808,1758405050680,-151.0,0.0002444,7]
[386573809,1758405050689,-151.0,0.0002444,7]
[386573810,1758405050699,-288.892008,0.0002444,7]
[386573811,1758405050708,-181.252178,0.0002444,7]
[386573812,1758405050718,-181.252178,0.0002444,7]
[386573813,1758405050728,-181.252178,0.0002444,7]
[386573814,1758405050737,-181.252173,0.0002444,7]
[386573815,1758405050747,-151.0,0.0002444,7]
[386573816,1758405050756,-500.0,0.00024444,5]
[386573817,1758405050766,-1154.42945904,0.00024457,2]
[386573818,1758405050775,-13000.0,0.00024463,7]
[386573819,1758405050785,-500.0,0.00024473,2]
[386573820,1758405050795,-500.0,0.00024473,2]
[386573821,1758405050804,-300.0,0.00024499,2]
[386573822,1758405050814,-103313.01,0.000245,7]
[386573823,1758405050824,-1285.66,0.000245,2]
[386573824,1758405050834,-200.0,0.0002451,7]
[386573825,1758405050844,-200.0,0.0002451,7]
[386573826,1758405050853,-2329.865,0.0002452,2]
[386573827,1758405050863,-18869.0,0.0002452,2]
[386573828,1758405050872,-711.5549372,0.00024557,2]
[386573829,1758405050882,-210.85082688,0.00024557,2]
[386573830,1758405050892,-5456.09889691,0.00024558,2]
[386573831,1758405050901,-642.83,0.000246,2]
[386573832,1758405050911,-822.25356333,0.00024603,2]
[386573833,1758405050921,-200.0,0.0002461,7]
[386573834,1758405050931,-587.29081626,0.0002465,2]
[386573835,1758405050941,-797.76436714,0.00024656,2]
[386573836,1758405050950,-400.0,0.00024657,3]
[386573837,1758405050960,-283.41238418,0.00024657,3]
[386573838,1758405050970,-400.0,0.00024657,3]
[386573839,1758405050980,-400.0,0.00024657,3]
[386573840,1758405050990,-400.0,0.00024657,3]
[386573841,1758405051000,-455.74876991,0.00024657,3]
[386573842,1758405051010,-400.0,0.00024657,3]
[386573843,1758405051020,-400.0,0.00024657,3]
[386573844,1758405051029,-400.0,0.00024657,3]
[386573845,1758405051039,-400.0,0.00024657,3]
[386573846,1758405051049,-400.0,0.00024657,3]
[386573847,1758405051058,-400.0,0.00024657,3]
[386573848,1758405051068,-400.0,0.00024657,3]
[386573849,1758405051078,-400.0,0.00024657,3]
[386573850,1758405051088,-400.0,0.00024657,3]
[386573851,1758405051098,-403.35467871,0.00024657,3]
[386573852,1758405051108,-400.0,0.00024657,3]
[386573853,1758405051117,-400.0,0.00024657,3]
[386573854,1758405051127,-400.0,0.00024657,3]
[386573855,1758405051136,-400.0,0.00024657,3]
[386573856,1758405051146,-400.0,0.00024657,3]
[386573857,1758405051156,-400.0,0.00024657,3]
[386573858,1758405051170,-400.0,0.00024657,3]
[386573859,1758405051180,-400.0,0.00024657,3]
[386573860,1758405051189,-400.0,0.00024657,3]
[386573861,1758405051199,-400.0,0.00024657,3]
[386573862,1758405051210,-400.0,0.00024657,3]
[386573863,1758405051220,-400.0,0.00024657,3]
[386573864,1758405051229,-400.0,0.00024657,3]
[386573865,1758405051240,-500.0,0.00024657,2]
[386573866,1758405051250,-400.0,0.00024657,3]
[386573867,1758405051260,-400.0,0.00024657,3]
[386573868,1758405051269,-400.0,0.00024657,3]
[386573869,1758405051279,-400.0,0.00024657,3]
[386573870,1758405051288,-400.0,0.00024657,3]
[386573871,1758405051298,-400.0,0.00024657,3]
[386573872,1758405051308,-400.0,0.00024657,3]
[386573873,1758405051317,-400.0,0.00024657,3]
[386573874,1758405051328,-400.0,0.00024657,3]
[386573875,1758405051338,-400.0,0.00024657,3]
[386573876,1758405051347,-400.0,0.00024657,3]
[386573877,1758405051357,-400.0,0.00024657,3]
[386573878,1758405051367,-400.0,0.00024657,3]
[386573879,1758405051376,-400.0,0.00024657,3]
[386573880,1758405051386,-400.0,0.00024657,3]
[386573881,1758405051396,-400.0,0.00024657,3]
[386573882,1758405051405,-400.0,0.00024657,3]
[386573883,1758405051415,-400.0,0.00024657,3]
[386573884,1758405051424,-400.0,0.00024657,3]
[386573885,1758405051434,-400.0,0.00024657,3]
[386573886,1758405051443,-400.0,0.00024657,3]
[386573887,1758405051454,-400.0,0.00024657,3]
[386573888,1758405051464,-400.0,0.00024657,3]
[386573889,1758405051474,-400.0,0.00024657,3]
[386573890,1758405051483,-400.0,0.00024657,3]
[386573891,1758405051493,-400.0,0.00024657,3]
[386573892,1758405051504,-500.0,0.00024657,3]
[386573893,1758405051513,-500.0,0.00024657,3]
[386573894,1758405051524,-500.0,0.00024657,3]
[386573895,1758405051534,-500.0,0.00024657,3]
[386573896,1758405051544,-500.0,0.00024657,3]
[386573897,1758405051555,-437.92,0.00024657,3]
[386573898,1758405051566,-400.0,0.00024657,3]
[386573899,1758405051576,-400.0,0.00024657,3]
[386573900,1758405051586,-400.0,0.00024657,3]
[386573901,1758405051596,-400.0,0.00024657,3]
[386573902,1758405051606,-400.0,0.00024657,3]
[386573903,1758405051616,-400.0,0.00024657,3]
[386573904,1758405051626,-400.0,0.00024657,3]
[386573905,1758405051635,-604.79,0.00024657,3]
[386573906,1758405051646,-400.0,0.00024657,3]
[386573907,1758405051967,-400.0,0.00024657,3]
[386573908,1758405051977,-400.0,0.00024657,3]
[386573909,1758405051986,-400.0,0.00024657,3]
[386573910,1758405051995,-400.0,0.00024657,3]
[386573911,1758405052004,-400.0,0.00024657,3]
[386573912,1758405052014,-529.86,0.00024657,3]
[386573913,1758405052023,-400.0,0.00024657,3]
[386573914,1758405052033,-400.0,0.00024657,3]
[386573915,1758405052043,-400.0,0.00024657,3]
[386573916,1758405052053,-400.0,0.00024657,3]
[386573917,1758405052065,-400.0,0.00024657,3]
[386573918,1758405052076,-400.0,0.00024657,3]
[386573919,1758405052086,-400.0,0.00024657,3]
[386573920,1758405052096,-400.0,0.00024657,3]
[386573921,1758405052105,-400.0,0.00024657,3]
[386573922,1758405052115,-400.0,0.00024657,3]
[386573923,1758405052126,-400.0,0.00024657,3]
[386573924,1758405052136,-400.0,0.00024657,3]
[386573925,1758405052146,-400.0,0.00024657,3]